bitfinex/quotes_BTCUSD_20240828
["timestamp","ask_amount","ask_price","bid_price","bid_amount"]
[1724826345990,0.02682392,59384.0,59383.0,2.03828191]
[1724826347672,0.02682392,59384.0,59383.0,1.72008191]
[1724826348920,0.34872392,59384.0,59383.0,1.72008191]
[1724826349403,0.34872392,59384.0,59383.0,1.60224322]
[1724826350868,0.34872392,59384.0,59383.0,1.24104231]
[1724826351073,0.34872392,59384.0,59383.0,0.878988]
[1724826351474,0.34872392,59384.0,59383.0,0.205396]
[1724826351698,0.34872392,59384.0,59383.0,0.542192]
[1724826351901,0.35319224,59384.0,59383.0,0.514192]
[1724826352269,0.35319224,59384.0,59383.0,0.878988]
[1724826352501,0.35319224,59384.0,59383.0,0.864988]
[1724826352689,0.35319224,59384.0,59383.0,0.850988]
[1724826353120,0.35319224,59384.0,59383.0,0.856988]
[1724826353770,0.35319224,59384.0,59383.0,0.864988]
[1724826354199,0.35319224,59384.0,59383.0,0.856988]
[1724826354334,0.35319224,59384.0,59383.0,0.850988]
[1724826354661,0.35319224,59384.0,59383.0,0.857988]
[1724826354814,0.35319224,59384.0,59383.0,0.866988]
[1724826355052,0.35319224,59384.0,59383.0,0.859988]
[1724826355264,0.35319224,59384.0,59383.0,0.850988]
[1724826355574,0.35319224,59384.0,59383.0,0.866988]
[1724826355800,0.35319224,59384.0,59383.0,1.196784]
[1724826356007,0.34872392,59384.0,59383.0,1.196784]
[1724826356214,0.34872392,59384.0,59383.0,1.203784]
[1724826356966,0.34872392,59384.0,59383.0,1.194784]
[1724826358951,0.34872392,59384.0,59383.0,1.198784]
[1724826359149,0.34872392,59384.0,59383.0,1.187784]
[1724826359567,0.34872392,59384.0,59383.0,1.199784]
[1724826360584,0.34872392,59384.0,59383.0,0.033998]
[1724826360787,0.51711892,59384.0,59383.0,0.033998]
[1724826361048,0.35313114,59384.0,59383.0,0.033998]
[1724826361263,0.35313114,59384.0,59383.0,0.021998]
[1724826361384,0.35313114,59384.0,59383.0,0.008998]
[1724826361593,0.35313114,59384.0,59383.0,0.020998]
[1724826361787,0.35313114,59384.0,59383.0,0.202396]
[1724826362024,0.35313114,59384.0,59383.0,0.033998]
[1724826362210,0.35313114,59384.0,59383.0,0.202396]
[1724826362603,0.35313114,59384.0,59383.0,0.033998]
[1724826363240,1.05313114,59384.0,59383.0,0.033998]
[1724826366115,0.35313114,59384.0,59383.0,0.033998]
[1724826366243,0.86191223,59384.0,59383.0,0.033998]
[1724826367207,1.19870323,59384.0,59383.0,0.033998]
[1724826367414,1.19870323,59384.0,59383.0,0.021998]
[1724826367625,1.53549423,59384.0,59383.0,0.008998]
[1724826368012,2.2855665,59384.0,59383.0,0.009998]
[1724826368166,2.23549423,59384.0,59383.0,0.008998]
[1724826368364,2.23549423,59384.0,59373.0,0.38]
[1724826368365,0.842105,59375.0,59373.0,0.38]
[1724826368577,0.824463,59375.0,59373.0,0.38]
[1724826368862,0.49195869,59375.0,59373.0,0.38]
[1724826369038,1.19195869,59375.0,59373.0,0.38]
[1724826369238,1.02353769,59375.0,59373.0,0.38]
[1724826369449,1.02353769,59375.0,59374.0,0.514268]
[1724826370028,1.02353769,59375.0,59374.0,0.851115]
[1724826370426,0.32353769,59375.0,59374.0,0.851115]
[1724826371051,0.32353769,59375.0,59374.0,0.856115]
[1724826371253,0.32353769,59375.0,59374.0,0.862115]
[1724826371496,0.32353769,59375.0,59374.0,0.851115]
[1724826371711,0.32353769,59375.0,59374.0,0.863115]
[1724826372152,0.32353769,59375.0,59374.0,0.851115]
[1724826372382,0.32353769,59375.0,59374.0,0.862115]
[1724826373451,0.32353769,59375.0,59371.0,0.0004]
[1724826373452,1.18260109,59372.0,59371.0,0.0004]
[1724826373670,1.49763308,59372.0,59371.0,0.0004]
[1724826374119,0.82391508,59372.0,59371.0,0.0004]
[1724826374326,1.16077408,59372.0,59371.0,0.0004]
[1724826374555,2.36606408,59372.0,59371.0,0.0004]
[1724826374733,0.50890909,59369.0,59359.0,0.5]
[1724826374927,2.12232741,59369.0,59359.0,0.5]
[1724826375264,0.00359509,59360.0,59359.0,0.5]
[1724826375481,1.60370209,59360.0,59359.0,0.5]
[1724826375680,2.30370209,59360.0,59359.0,0.5]
[1724826375882,2.40799634,59360.0,59359.0,0.5]
[1724826376089,2.30799634,59360.0,59359.0,0.5]
[1724826376298,2.30799634,59360.0,59359.0,0.495]
[1724826376549,1.46567934,59360.0,59359.0,0.663466]
[1724826376753,1.46567934,59360.0,59359.0,0.495]
[1724826376960,1.46208425,59360.0,59359.0,0.495]
[1724826377131,1.39148425,59360.0,59359.0,0.495]
[1724826377349,1.39148425,59360.0,59359.0,0.663466]
[1724826378022,0.69148425,59360.0,59359.0,0.663466]
[1724826378199,0.69448425,59360.0,59359.0,0.663466]
[1724826378400,0.69448425,59360.0,59359.0,0.495]
[1724826379712,0.69448425,59360.0,59359.0,0.663466]
[1724826380308,0.69448425,59360.0,59359.0,0.495]
[1724826381134,0.69448425,59360.0,59359.0,0.663466]
[1724826382242,0.51258425,59360.0,59359.0,1.33733]
[1724826383407,0.50958425,59360.0,59359.0,1.33733]
[1724826383612,0.51158425,59360.0,59359.0,1.33733]
[1724826384060,0.50958425,59360.0,59359.0,1.3382298]
[1724826384524,0.51058425,59360.0,59359.0,1.3382298]
[1724826384730,0.51158425,59360.0,59359.0,1.3482298]
[1724826384953,0.51058425,59360.0,59359.0,1.3482298]
[1724826385196,0.51158425,59360.0,59359.0,1.3482298]
[1724826385613,0.51058425,59360.0,59359.0,1.3382298]
[1724826385857,0.51158425,59360.0,59359.0,1.3482298]
[1724826386565,0.51058425,59360.0,59359.0,1.3482298]
[1724826386869,0.51158425,59360.0,59359.0,1.3482298]
[1724826387289,0.51038157,59360.0,59359.0,1.3482298]
[1724826387727,0.51138157,59360.0,59359.0,1.0112978]
[1724826387944,0.51038157,59360.0,59359.0,1.3382298]
[1724826388163,0.51138157,59360.0,59359.0,1.3482298]
[1724826389033,0.51038157,59360.0,59359.0,1.3382298]
[1724826389270,0.51138157,59360.0,59359.0,1.3382298]
[1724826389476,0.51038157,59360.0,59359.0,1.3382298]
[1724826389890,0.51138157,59360.0,59359.0,1.3382298]
[1724826390312,0.51038157,59360.0,59359.0,1.3382298]
[1724826390517,0.50938157,59360.0,59359.0,1.3382298]
[1724826390751,0.51038157,59360.0,59359.0,1.3382298]
[1724826391002,0.51138157,59360.0,59359.0,1.3482298]
[1724826391210,0.51138157,59360.0,59359.0,0.6643658]
[1724826391466,0.85657666,59360.0,59359.0,0.5058998]
[1724826391926,1.02503966,59360.0,59359.0,0.5058998]
[1724826392117,1.69689366,59360.0,59359.0,0.4958998]
[1724826392332,2.39689366,59360.0,59359.0,0.4958998]
[1724826392534,2.39689366,59360.0,59359.0,0.4998998]
[1724826392746,2.39589366,59360.0,59359.0,0.4998998]
[1724826393764,2.39589366,59360.0,59359.0,0.4958998]
[1724826393965,2.39589366,59360.0,59359.0,0.5008998]
[1724826394330,2.39589366,59360.0,59359.0,0.4958998]
[1724826394531,2.39589366,59360.0,59359.0,0.5008998]
[1724826396642,2.39671166,59360.0,59359.0,0.5008998]
[1724826397979,2.73363866,59360.0,59359.0,0.5008998]
[1724826398903,2.73363866,59360.0,59359.0,0.4958998]
[1724826399125,2.74363866,59360.0,59359.0,0.4968998]
[1724826399367,2.75363866,59360.0,59359.0,0.4968998]
[1724826399637,2.74363866,59360.0,59359.0,0.4968998]
[1724826400086,2.41971166,59360.0,59359.0,0.4968998]
[1724826400315,2.9251903,59360.0,59359.0,0.4968998]
[1724826400560,2.9021903,59360.0,59359.0,0.4958998]
[1724826400777,2.9131903,59360.0,59359.0,0.4968998]
[1724826400989,2.75663866,59360.0,59359.0,0.4968998]
[1724826401212,2.75663866,59360.0,59359.0,0.4958998]
[1724826401444,2.76663866,59360.0,59359.0,0.4968998]
[1724826401660,2.74563866,59360.0,59359.0,0.4958998]
[1724826402145,2.74063866,59360.0,59359.0,0.4968998]
[1724826402360,2.74063866,59360.0,59359.0,0.4958998]
[1724826402584,1.72985766,59360.0,59359.0,0.4958998]
[1724826402803,1.57095766,59360.0,59359.0,0.4958998]
[1724826403034,1.57895766,59360.0,59359.0,0.4958998]
[1724826403253,1.91588466,59360.0,59359.0,0.4958998]
[1724826403704,1.57895766,59360.0,59359.0,0.4958998]
[1724826403950,1.57095766,59360.0,59359.0,0.4958998]
[1724826404165,1.57695766,59360.0,59359.0,0.4958998]
[1724826404398,1.56395766,59360.0,59359.0,0.4958998]
[1724826404827,1.56695766,59360.0,59359.0,0.4958998]
[1724826405474,1.56395766,59360.0,59359.0,0.4958998]
[1724826405971,1.56895766,59360.0,59359.0,0.4958998]
[1724826408443,1.90588466,59360.0,59359.0,0.4958998]
[1724826411262,2.24771166,59360.0,59359.0,0.4758998]
[1724826411500,1.22009957,59360.0,59359.0,2.0016618]
[1724826411730,1.22009957,59360.0,59359.0,2.0246618]
[1724826411961,1.22009957,59360.0,59359.0,2.0046618]
[1724826412176,1.21580532,59360.0,59359.0,2.0046618]
[1724826412430,1.2148754,59360.0,59359.0,2.0046618]
[1724826412669,0.5188754,59360.0,59359.0,2.32299871]
[1724826412880,0.51480532,59360.0,59359.0,2.32299871]
[1724826413121,0.51080532,59360.0,59359.0,2.32299871]
[1724826413596,0.50780532,59360.0,59359.0,1.98606671]
[1724826414052,0.50780532,59360.0,59359.0,2.32599871]
[1724826414256,0.50780532,59360.0,59359.0,2.32299871]
[1724826414776,0.50980532,59360.0,59359.0,2.32599871]
[1724826415016,0.50980532,59360.0,59359.0,1.98906671]
[1724826415223,0.50880532,59360.0,59359.0,1.9876618]
[1724826415629,0.50880532,59360.0,59359.0,1.9886618]
[1724826415630,0.51392344,59360.0,59359.0,1.9886618]
[1724826415847,0.50980532,59360.0,59359.0,1.6287298]
[1724826416002,0.51392344,59360.0,59359.0,1.6287298]
[1724826417020,0.51292344,59360.0,59359.0,1.6257298]
[1724826417225,0.51392344,59360.0,59359.0,1.9656618]
[1724826417678,0.51292344,59360.0,59359.0,1.9616618]
[1724826417805,0.51392344,59360.0,59359.0,1.6277298]
[1724826418155,0.51292344,59360.0,59359.0,1.6247298]
[1724826418385,0.51292344,59360.0,59359.0,1.9616618]
[1724826418519,0.51292344,59360.0,59359.0,1.9646618]
[1724826418734,0.50880532,59360.0,59359.0,1.9616618]
[1724826419154,0.51192344,59360.0,59359.0,1.9616618]
[1724826419352,0.51192344,59360.0,59359.0,1.6151618]
[1724826419553,0.51292344,59360.0,59359.0,1.2782298]
[1724826419753,0.50880532,59360.0,59359.0,1.2782298]
[1724826419960,0.51291263,59360.0,59359.0,1.2782298]
[1724826420136,0.51391263,59360.0,59359.0,1.2812298]
[1724826420336,0.51291263,59360.0,59359.0,1.2782298]
[1724826420657,0.51391263,59360.0,59359.0,1.2812298]
[1724826420860,0.51291263,59360.0,59359.0,1.2812298]
[1724826421058,0.51191263,59360.0,59359.0,1.2782298]
[1724826421261,0.51391263,59360.0,59359.0,1.2812298]
[1724826421656,0.51291263,59360.0,59359.0,1.2812298]
[1724826422089,0.51391263,59360.0,59359.0,1.2812298]
[1724826422492,0.51291263,59360.0,59359.0,1.2812298]
[1724826422697,0.51291263,59360.0,59359.0,0.9442978]
[1724826423043,0.51391263,59360.0,59359.0,0.9442978]
[1724826423268,0.51291263,59360.0,59359.0,0.9412978]
[1724826423696,0.51391263,59360.0,59359.0,0.9442978]
[1724826423919,0.71441263,59360.0,59359.0,0.9442978]
[1724826424340,0.71241263,59360.0,59359.0,0.9412978]
[1724826424753,0.71441263,59360.0,59359.0,0.9442978]
[1724826425387,0.51391263,59360.0,59359.0,0.9442978]
[1724826426969,0.51391263,59360.0,59359.0,0.6073658]
[1724826427223,0.51291263,59360.0,59359.0,0.9442978]
[1724826427543,0.51291263,59360.0,59359.0,0.9412978]
[1724826427770,0.51291263,59360.0,59359.0,0.9442978]
[1724826427771,0.51391263,59360.0,59359.0,0.9442978]
[1724826428578,0.51391263,59360.0,59359.0,1.6173298]
[1724826428812,0.51391263,59360.0,59359.0,1.9542618]
[1724826429290,0.50980532,59360.0,59359.0,1.9542618]
[1724826429734,0.51390876,59360.0,59359.0,1.9542618]
[1724826430588,0.513706,59360.0,59359.0,1.9542618]
[1724826431035,0.513706,59360.0,59359.0,1.6173298]
[1724826431272,0.513706,59360.0,59359.0,0.6073658]
[1724826431480,0.50960256,59360.0,59359.0,0.6073658]
[1724826431684,0.51371489,59360.0,59359.0,0.6073658]
[1724826431897,0.51371489,59360.0,59359.0,0.9442978]
[1724826432115,0.51371489,59360.0,59359.0,1.2812298]
[1724826432772,0.51371489,59360.0,59359.0,1.4679298]
[1724826434315,0.51371489,59360.0,59359.0,1.8048618]
[1724826434521,0.51371489,59360.0,59359.0,1.9610618]
[1724826434730,0.50960256,59360.0,59359.0,1.9610618]
[1724826435148,0.51370979,59360.0,59359.0,1.9610618]
[1724826438622,0.51370979,59360.0,59359.0,1.9840618]
[1724826438831,0.50960256,59360.0,59359.0,1.9840618]
[1724826440597,0.50960256,59360.0,59359.0,2.3209938]
[1724826440808,0.50960256,59360.0,59359.0,2.32239871]
[1724826444247,0.50960256,59360.0,59359.0,2.3209938]
[1724826445547,0.50960256,59360.0,59359.0,1.9840618]
[1724826452999,0.50960256,59360.0,59359.0,0.9442978]
[1724826453214,0.50960256,59360.0,59359.0,0.4388998]
[1724826453416,0.51375283,59360.0,59359.0,0.4388998]
[1724826454075,1.40395283,59360.0,59359.0,0.4388998]
[1724826454423,1.57601092,59360.0,59359.0,0.4388998]
[1724826454623,1.72891092,59360.0,59359.0,0.4388998]
[1724826454827,2.06583792,59360.0,59359.0,0.4388998]
[1724826455034,2.06483792,59360.0,59359.0,0.4358998]
[1724826455454,1.72691092,59360.0,59359.0,0.4388998]
[1724826456087,1.72791092,59360.0,59359.0,0.4388998]
[1724826456498,1.55944792,59360.0,59359.0,0.4388998]
[1724826456719,1.56444792,59360.0,59359.0,0.4358998]
[1724826456921,1.73291092,59360.0,59359.0,0.4358998]
[1724826457123,1.21575283,59360.0,59359.0,0.6043658]
[1724826457348,1.21175283,59360.0,59359.0,0.9412978]
[1724826457548,1.21275283,59360.0,59359.0,0.9412978]
[1724826457722,1.21275283,59360.0,59359.0,0.9442978]
[1724826458307,1.21275283,59360.0,59359.0,0.6043658]
[1724826458737,1.21175283,59360.0,59359.0,0.6043658]
[1724826460045,1.21275283,59360.0,59359.0,0.6073658]
[1724826461588,0.51275283,59360.0,59359.0,1.2812298]
[1724826466740,0.51275283,59360.0,59359.0,1.9750618]
[1724826467229,0.50860256,59360.0,59359.0,1.9750618]
[1724826467466,0.50860256,59360.0,59359.0,2.3119938]
[1724826470278,0.50760256,59360.0,59359.0,2.3089938]
[1724826470492,0.50860256,59360.0,59359.0,2.3089938]
[1724826470698,0.50960256,59360.0,59359.0,2.3119938]
[1724826470904,0.50960256,59360.0,59359.0,2.31339871]
[1724826471311,0.50960256,59360.0,59359.0,2.32922855]
[1724826471948,0.50960256,59360.0,59359.0,2.31339871]
[1724826472159,0.50960256,59360.0,59359.0,2.32922839]
[1724826472771,0.50960256,59360.0,59359.0,2.32922782]
[1724826475793,0.50960256,59360.0,59359.0,2.66615894]
[1724826477486,0.50960256,59360.0,59359.0,2.32622694]
[1724826477487,0.50860256,59360.0,59359.0,2.32622694]
[1724826477688,0.50860256,59360.0,59359.0,2.31039871]
[1724826477893,0.50860256,59360.0,59359.0,2.3229938]
[1724826478090,0.50760256,59360.0,59359.0,1.9660938]
[1724826478363,0.50760256,59360.0,59359.0,1.6291618]
[1724826478567,0.5126442,59360.0,59359.0,2.32959871]
[1724826478742,0.50860256,59360.0,59359.0,2.32959871]
[1724826479159,0.50860256,59360.0,59359.0,2.3281938]
[1724826479589,0.50860256,59360.0,59359.0,2.1302938]
[1724826480609,0.50860256,59360.0,59359.0,2.1532938]
[1724826483693,0.5083998,59360.0,59359.0,2.1532938]
[1724826484118,0.51244232,59360.0,59359.0,2.1532938]
[1724826485843,0.51244232,59360.0,59359.0,2.34039871]
[1724826486061,0.51244232,59360.0,59359.0,2.97211165]
[1724826486276,0.5083998,59360.0,59359.0,2.97211165]
[1724826487177,0.5083998,59360.0,59359.0,2.95811165]
[1724826487388,0.5083998,59360.0,59359.0,2.96211165]
[1724826487603,0.5093998,59360.0,59359.0,2.97611165]
[1724826489183,0.5093998,59360.0,59359.0,2.99193958]
[1724826489408,0.5093998,59360.0,59359.0,2.65500758]
[1724826489633,0.5093998,59360.0,59359.0,2.36022664]
[1724826490342,0.5093998,59360.0,59359.0,2.01892173]
[1724826490550,0.5093998,59360.0,59359.0,1.99732664]
[1724826490793,0.5093998,59360.0,59359.0,1.98149871]
[1724826491817,0.5093998,59360.0,59359.0,2.00449871]
[1724826492845,0.5093998,59360.0,59359.0,2.02032852]
[1724826493054,0.5093998,59360.0,59359.0,2.65270946]
[1724826493903,0.5093998,59360.0,59359.0,2.65270935]
[1724826494967,0.5093998,59360.0,59359.0,2.65270829]
[1724826495791,0.5093998,59360.0,59359.0,2.46830829]
[1724826496024,0.5093998,59360.0,59359.0,2.02032735]
[1724826496447,0.5093998,59360.0,59359.0,2.01892244]
[1724826498506,0.5093998,59360.0,59359.0,1.68199044]
[1724826498702,0.7043998,59360.0,59359.0,1.68199044]
[1724826498943,0.7043998,59360.0,59359.0,1.6661618]
[1724826499139,0.70843474,59360.0,59359.0,1.6661618]
[1724826499343,0.7043998,59360.0,59359.0,1.6661618]
[1724826499564,0.70843474,59360.0,59359.0,1.6661618]
[1724826500397,0.51343474,59360.0,59359.0,1.6661618]
[1724826501723,0.51343474,59360.0,59359.0,2.29787474]
[1724826501931,0.51343474,59360.0,59359.0,2.44197474]
[1724826502354,0.5093998,59360.0,59359.0,2.44197474]
[1724826504474,0.5093998,59360.0,59359.0,2.45780444]
[1724826506836,0.5093998,59360.0,59359.0,2.45810647]
[1724826508165,0.5093998,59360.0,59359.0,2.45810509]
[1724826510920,0.5093998,59360.0,59359.0,2.796442]
[1724826511120,0.5093998,59360.0,59359.0,2.993942]
[1724826511551,0.5093998,59360.0,59359.0,2.99394194]
[1724826513610,0.5093998,59360.0,59359.0,3.01926713]
[1724826514602,0.5093998,59360.0,59359.0,2.99394194]
[1724826515840,0.5093998,59360.0,59359.0,3.01926783]
[1724826516151,0.5093998,59360.0,59359.0,2.79644194]
[1724826516774,0.51344965,59360.0,59359.0,2.79644194]
[1724826518868,0.51344965,59360.0,59359.0,2.31540994]
[1724826519085,0.51344965,59360.0,59359.0,2.01922409]
[1724826519274,0.5093998,59360.0,59359.0,2.01922409]
[1724826520066,0.51345361,59360.0,59359.0,2.01922409]
[1724826522831,0.5093998,59360.0,59359.0,2.01922409]
[1724826523671,0.5093998,59360.0,59359.0,2.01922473]
[1724826524129,0.5093998,59360.0,59359.0,1.68229273]
[1724826524130,0.51345361,59360.0,59359.0,1.68229273]
[1724826524305,0.83555361,59360.0,59359.0,1.66646383]
[1724826524745,0.83555361,59360.0,59359.0,1.32953183]
[1724826525168,0.8314998,59360.0,59359.0,1.66646384]
[1724826525591,0.83555361,59360.0,59359.0,1.66646384]
[1724826528451,0.83555361,59360.0,59359.0,1.30653184]
[1724826529770,0.83455361,59360.0,59359.0,1.29253184]
[1724826529979,0.83555361,59360.0,59359.0,1.30353184]
[1724826530989,0.83455361,59360.0,59359.0,1.29253184]
[1724826531388,0.83555361,59360.0,59359.0,1.30353184]
[1724826532638,0.83555361,59360.0,59359.0,0.46120184]
[1724826532848,0.83555361,59360.0,59359.0,0.62966784]
[1724826533045,0.83555361,59360.0,59359.0,1.30353184]
[1724826533256,0.8314998,59360.0,59359.0,1.30353184]
[1724826533404,0.83552114,59360.0,59359.0,1.30353184]
[1724826534319,1.53552114,59360.0,59359.0,1.30353184]
[1724826534954,1.53552114,59360.0,59359.0,1.64046384]
[1724826535804,0.83552114,59360.0,59359.0,1.64046384]
[1724826539273,0.83531838,59360.0,59359.0,1.64046384]
[1724826540549,0.83531838,59360.0,59359.0,1.30353184]
[1724826540756,0.83531838,59360.0,59359.0,0.96659984]
[1724826540964,0.83129704,59360.0,59359.0,0.96659984]
[1724826541384,0.83531429,59360.0,59359.0,0.96659984]
[1724826542245,1.53531429,59360.0,59359.0,1.30353184]
[1724826543052,1.53531429,59360.0,59359.0,0.96659984]
[1724826545708,1.53531429,59360.0,59359.0,1.30353184]
[1724826546618,0.83531429,59360.0,59359.0,1.30353184]
[1724826548226,0.83531429,59360.0,59359.0,0.96659984]
[1724826549385,0.83431429,59360.0,59359.0,0.95559984]
[1724826549616,1.53431429,59360.0,59359.0,0.96159984]
[1724826550038,1.53431429,59360.0,59359.0,0.95559984]
[1724826550480,1.53431429,59360.0,59359.0,0.96159984]
[1724826550695,1.53431429,59360.0,59359.0,1.29853184]
[1724826552288,1.39031429,59360.0,59359.0,1.29853184]
[1724826552974,1.21221429,59360.0,59359.0,1.29853184]
[1724826555921,1.38971429,59360.0,59359.0,1.29853184]
[1724826566383,1.38971429,59360.0,59359.0,1.28453184]
[1724826566384,1.38871429,59360.0,59359.0,1.28453184]
[1724826566832,1.38971429,59360.0,59359.0,1.29553184]
[1724826567521,1.38971429,59360.0,59359.0,1.29053184]
[1724826569125,1.21221429,59360.0,59359.0,1.62746384]
[1724826569377,1.21221429,59360.0,59359.0,1.84386384]
[1724826570492,0.51221429,59360.0,59359.0,1.84386384]
[1724826576614,0.51221429,59360.0,59359.0,1.65046384]
[1724826577055,0.50819704,59360.0,59359.0,1.65046384]
[1724826577663,0.51218482,59360.0,59359.0,1.65046384]
[1724826593629,0.51218482,59360.0,59359.0,2.32040075]
[1724826593837,0.51218482,59360.0,59359.0,2.67316239]
[1724826594040,0.50819704,59360.0,59359.0,2.67316239]
[1724826594450,0.50819704,59360.0,59359.0,2.66716239]
[1724826594878,0.50919704,59360.0,59359.0,2.755079]
[1724826595085,0.50819704,59360.0,59359.0,2.744079]
[1724826595908,0.50819704,59360.0,59359.0,2.758079]
[1724826596315,0.50819704,59360.0,59359.0,2.69348915]
[1724826596704,0.50719704,59360.0,59359.0,2.69548915]
[1724826597054,0.50719704,59360.0,59359.0,2.70948915]
[1724826598219,0.50719704,59360.0,59359.0,2.7094862]
[1724826600577,0.47350404,59360.0,59359.0,3.0464182]
[1724826602963,0.335818,59384.0,59383.0,0.50549603]
[1724826603189,0.84459909,59384.0,59383.0,0.00030203]
[1724826603423,1.23156168,59384.0,59383.0,0.00030203]
[1724826603645,2.29343189,59384.0,59383.0,0.00030203]
[1724826603861,0.1412,59369.0,59365.0,0.168446]
[1724826604086,0.70441309,59384.0,59367.0,0.50540786]
[1724826604087,0.1908,59368.0,59367.0,0.50540786]
[1724826604300,0.1438,59371.0,59363.0,0.33691]
[1724826604529,0.1438,59369.0,59363.0,0.33691]
[1724826604742,0.14739509,59369.0,59368.0,0.16844]
[1724826604956,0.14739509,59369.0,59366.0,0.168444]
[1724826605175,0.1325,59367.0,59366.0,0.168444]
[1724826605382,0.3053,59367.0,59366.0,0.168444]
[1724826605801,0.3053,59367.0,59366.0,0.505337]
[1724826605802,0.30889509,59367.0,59366.0,0.505337]
[1724826606656,0.3053,59367.0,59366.0,0.84223]
[1724826606866,0.1728,59367.0,59366.0,0.84223]
[1724826607071,0.1728,59367.0,59366.0,0.506337]
[1724826607498,0.1758,59367.0,59366.0,0.506337]
[1724826607940,0.1728,59367.0,59366.0,0.84223]
[1724826608368,0.1728,59367.0,59366.0,0.505337]
[1724826609261,0.1728,59367.0,59366.0,0.513337]
[1724826609466,0.1728,59367.0,59366.0,0.517337]
[1724826610362,0.1728,59367.0,59366.0,0.513337]
[1724826610576,0.3157,59367.0,59366.0,0.510337]
[1724826611241,0.3157,59367.0,59366.0,0.514337]
[1724826612323,0.3157,59367.0,59366.0,0.505337]
[1724826612752,0.3157,59367.0,59366.0,0.515337]
[1724826613177,0.3157,59367.0,59366.0,0.521337]
[1724826613612,0.3157,59367.0,59366.0,0.515337]
[1724826614050,0.3157,59367.0,59366.0,0.512337]
[1724826614271,0.1728,59367.0,59366.0,0.512337]
[1724826615402,0.1728,59367.0,59366.0,0.523337]
[1724826617744,0.17742385,59367.0,59366.0,0.523337]
[1724826620883,0.18101894,59367.0,59366.0,0.018]
[1724826621114,0.49086194,59367.0,59366.0,0.018]
[1724826626653,1.19086194,59367.0,59366.0,0.018]
[1724826626934,1.69620194,59367.0,59366.0,0.018]
[1724826627165,2.15107232,59367.0,59366.0,0.018]
[1724826627393,1.81418532,59367.0,59366.0,0.018]
[1724826628705,2.15107232,59367.0,59366.0,0.018]
[1724826628916,0.1801,59363.0,59360.0,0.1693608]
[1724826629117,0.50534,59362.0,59360.0,0.1693608]
[1724826629329,0.50977485,59362.0,59360.0,0.1693608]
[1724826630357,0.50977485,59362.0,59360.0,0.1763608]
[1724826631008,0.50977485,59362.0,59360.0,0.1793608]
[1724826631885,0.50957217,59362.0,59360.0,0.1793608]
[1724826632318,0.50957217,59362.0,59361.0,0.16846]
[1724826633601,0.50957217,59362.0,59361.0,0.17146]
[1724826633831,0.50957217,59362.0,59361.0,0.01]
[1724826634034,0.50957217,59362.0,59361.0,0.17846]
[1724826634274,1.20957217,59362.0,59361.0,0.01]
[1724826634912,1.34467217,59362.0,59361.0,0.01]
[1724826635989,1.34826726,59362.0,59361.0,0.01]
[1724826636601,1.51672426,59362.0,59361.0,0.01]
[1724826636820,1.68532426,59362.0,59361.0,0.01]
[1724826637043,2.02223926,59362.0,59361.0,0.01]
[1724826637902,1.68532426,59362.0,59361.0,0.01]
[1724826638113,2.02223926,59362.0,59361.0,0.01]
[1724826638318,1.68532426,59362.0,59361.0,0.01]
[1724826638968,2.02223926,59362.0,59361.0,0.01]
[1724826639416,2.35915426,59362.0,59361.0,0.01]
[1724826639626,2.02223926,59362.0,59361.0,0.01]
[1724826640067,1.38176726,59362.0,59361.0,0.01]
[1724826640525,1.38176726,59362.0,59361.0,0.17846]
[1724826641437,1.20957217,59362.0,59361.0,0.998002]
[1724826641899,1.20957217,59362.0,59361.0,1.506923]
[1724826642144,1.20513732,59362.0,59361.0,1.506923]
[1724826642391,1.20513732,59362.0,59361.0,1.170002]
[1724826642628,1.2095525,59362.0,59361.0,0.852302]
[1724826643125,1.21314759,59362.0,59361.0,0.17846]
[1724826643343,1.69550459,59362.0,59361.0,0.01]
[1724826643597,1.81348797,59362.0,59361.0,0.01]
[1724826643817,2.48731797,59362.0,59361.0,0.01]
[1724826644277,2.15040297,59362.0,59361.0,0.01]
[1724826644971,2.48731797,59362.0,59361.0,0.01]
[1724826645201,2.53746521,59362.0,59361.0,0.01]
[1724826645421,2.56253088,59362.0,59361.0,0.01]
[1724826645636,2.562539,59362.0,59361.0,0.0108998]
[1724826645860,2.48731797,59362.0,59361.0,0.0008998]
[1724826646062,2.44955562,59362.0,59361.0,0.0008998]
[1724826646328,2.45055562,59362.0,59361.0,0.0008998]
[1724826646547,2.37033459,59362.0,59361.0,0.0008998]
[1724826646773,2.37633459,59362.0,59361.0,0.0008998]
[1724826646996,2.38233459,59362.0,59361.0,0.0018998]
[1724826647240,2.37533459,59362.0,59361.0,0.0018998]
[1724826647452,2.45055562,59362.0,59361.0,0.0008998]
[1724826647636,2.37533459,59362.0,59361.0,0.0008998]
[1724826647900,2.44455562,59362.0,59361.0,0.0008998]
[1724826648348,2.36933459,59362.0,59361.0,0.0008998]
[1724826648563,2.46961848,59362.0,59361.0,0.0008998]
[1724826648785,2.47766008,59362.0,59361.0,0.0018998]
[1724826649204,2.48266008,59362.0,59361.0,0.0018998]
[1724826649856,2.48264573,59362.0,59361.0,0.0018998]
[1724826650285,2.81956073,59362.0,59361.0,0.0018998]
[1724826650488,2.71924959,59362.0,59361.0,0.0018998]
[1724826650698,2.84460329,59362.0,59361.0,0.0018998]
[1724826650922,2.71924959,59362.0,59361.0,0.0018998]
[1724826651602,2.84457135,59362.0,59361.0,0.0018998]
[1724826651826,2.83657135,59362.0,59361.0,0.0008998]
[1724826652321,2.83957135,59362.0,59361.0,0.0018998]
[1724826652532,2.84457135,59362.0,59361.0,0.0018998]
[1724826654341,2.84457135,59362.0,59361.0,0.00210155]
[1724826654558,2.84454669,59362.0,59361.0,0.00210155]
[1724826654787,2.71924959,59362.0,59361.0,0.00210155]
[1724826656098,2.71124959,59362.0,59361.0,0.00110155]
[1724826656313,2.48055195,59362.0,59361.0,0.00210155]
[1724826656779,2.48755195,59362.0,59361.0,0.00310155]
[1724826656996,2.80646695,59362.0,59361.0,0.00110155]
[1724826657220,2.80646695,59362.0,59361.0,0.00210155]
[1724826657448,2.82346695,59362.0,59361.0,0.00310155]
[1724826657686,2.81644579,59362.0,59361.0,0.00210155]
[1724826657915,2.72406759,59362.0,59361.0,0.00310155]
[1724826658137,2.38715259,59362.0,59361.0,0.00310155]
[1724826658735,2.37715259,59362.0,59361.0,0.00210155]
[1724826658946,2.72406759,59362.0,59361.0,0.00210155]
[1724826659150,2.71706759,59362.0,59361.0,0.00110155]
[1724826659362,2.81725641,59362.0,59361.0,0.00110155]
[1724826659564,2.71406759,59362.0,59361.0,0.00210155]
[1724826659779,2.71506759,59362.0,59361.0,0.00110155]
[1724826659982,2.81525319,59362.0,59361.0,0.00110155]
[1724826660192,2.72006759,59362.0,59361.0,0.00110155]
[1724826660393,2.82006759,59362.0,59361.0,0.00110155]